Cogmind - Beta 15 @@@ ROGUE MODE // 2025.05.28 @ 16:38:04 Player: Jack Result: Destroyed by G-47 Trooper with Particle Gun Performance ------------- Evolutions (2) 1000 Regions Visited (3) 600 Robots Destroyed (3) 15 Value Destroyed (30) 30 Prototype IDs (0) 0 Alien Tech Used (0) 0 Bonus (200) 200 TOTAL SCORE: 1845 Bonus ------- Pacifist 200 Cogmind --------- Core Integrity 0/550 Matter 45/300 Energy 66/100 System Corruption 0% Temperature Cool (9) Movement Core (50) Location -8/Materials Parts ------- > --- POWER (1) -------- (None) > --- PROPULSION (2) --- (None) > --- UTILITY (6) ------ (None) > --- WEAPON (2) ------- (None) > --- INVENTORY (5) ---- Grenade Launcher Peak State ------------ > --- POWER ------------ (None) > --- PROPULSION ------- Cesium-ion Thruster Cesium-ion Thruster > --- UTILITY ---------- (None) > --- WEAPON ----------- (None) > --- INVENTORY -------- Cesium-ion Thruster Cesium-ion Thruster Grenade Launcher [Rating: 6] Favorites ----------- Power None Propulsion Cesium-ion Thruster Flight Unit Cesium-ion Thruster Utility None Weapon Small Laser Energy Gun Small Laser Ballistic Gun Assault Rifle Build | -11 -10 -9 -8 ------- Run | Yrd Mat Mat Mat Slots Evolved 4 | . . 2 2 Power . | . . . . Propulsion . | . . . . Utility 4 | . . 2 2 Weapon . | . . . . Parts Attached 8 | 2 . 1 5 Power . | . . . . Engine . | . . . . Core . | . . . . Reactor . | . . . . Propulsion 6 | . . 1 5 Treads . | . . . . Leg . | . . . . Wheel . | . . . . Hover . | . . . . Flight 6 | . . 1 5 Utility . | . . . . Device . | . . . . Storage . | . . . . Processor . | . . . . Hackware . | . . . . Protection . | . . . . Artifact . | . . . . Weapon 2 | 2 . . . Energy Gun 1 | 1 . . . Energy Cannon . | . . . . Ballistic Gun 1 | 1 . . . Ballistic Cannon . | . . . . Launcher . | . . . . Special Weapon . | . . . . Impact Weapon . | . . . . Slashing Weapon . | . . . . Piercing Weapon . | . . . . Special Melee Weapon . | . . . . Unidentified Prototypes . | . . . . Parts Lost 8 | . . 1 7 Power . | . . . . Propulsion 6 | . . . 6 Utility . | . . . . Weapon 2 | . . 1 1 Highest Loss Streak 7 | . . 1 7 To Critical Strikes . | . . . . Average Backups 2 | . 1 3 4 Power . | . . . . Propulsion 1 | . . 2 3 Utility . | . . . . Weapon 1 | . 1 1 1 Tool/Special . | . . . . Unused Backups 2 | . . 1 1 Power . | . . . . Propulsion . | . . . . Utility . | . . . . Weapon 2 | . . 1 1 Tool/Special . | . . . . Average Slot Usage (%) 21 | . 28 20 14 Flight 3 | . . . 10 Energy Gun 10 | . 14 11 4 Ballistic Gun 8 | . 14 9 . Peak Build Rating 6 | 2 2 3 6 Average Rating 2 | 1 2 2 3 On Entrance 1 | . 2 2 3 Naked Turns 19 | . . . 19 Heaviest Build 3 | 3 3 3 1 Greatest Support 10 | 3 3 4 10 Greatest Overweight (x) . | . . . . Average Overweight (x) . | . . . . Largest Inventory Capacity 5 | 5 5 5 5 Average Capacity 5 | 5 5 5 5 Most Carried 5 | 1 2 5 5 Average Carried 2 | . 1 3 4 Final Capacity 5 | 5 5 5 5 Final Carried 5 | 1 2 5 1 Class Distribution -------------------- 100% | Mutant Dominant Class ---------------- Mutant | -10/Materials Mutant | -9/Materials Mutant | -8/Materials Resources | -11 -10 -9 -8 ----------- Run | Yrd Mat Mat Mat Matter Collected . | . . . . Remotely . | . . . . Salvage Created 48 | . . 48 . Parts 5 | . . 5 . Haulers Intercepted . | . . . . Recyclers Shooed . | . . . . Parts Field Recycled . | . . . . Retrieved Matter . | . . . . Parts Self-Destructed . | . . . . Prevented . | . . . . Kills | -11 -10 -9 -8 ------- Run | Yrd Mat Mat Mat Combat Hostiles Destroyed 3 | . . 3 . Guns 3 | . . 3 . Classes Destroyed 1 | . . 1 . Swarmer 3 | . . 3 . Best Kill Streak 3 | . . 3 . Combat Bots Only 3 | . . 3 . Max Kills in Single Turn 1 | . . 1 . Gunslinging . | . . . . Exploded . | . . . . Melee . | . . . . Uniques/NPCs Destroyed . | . . . . Combat | -11 -10 -9 -8 -------- Run | Yrd Mat Mat Mat Hostile Shots Fired 122 | . 6 26 90 Missed 50 | . 2 9 39 Hits 72 | . 4 17 51 Projectile 72 | . 4 17 51 Critical Strikes 2 | . . . 2 Damage Taken 957 | . 35 159 763 Core 633 | . 16 66 551 Absorbed by Shields . | . . . . Core Remaining (%) 92 | 100 93 83 . Volleys Fired 6 | . . 6 . Largest 2 | . . 2 . Hottest 60 | . . 60 . Shots Fired 11 | . . 11 . Gun 11 | . . 11 . Cannon . | . . . . Launcher . | . . . . Special . | . . . . Kinetic 5 | . . 5 . Thermal 6 | . . 6 . Explosive . | . . . . Electromagnetic . | . . . . Robot Hit Streak 3 | . . 3 . Robot Miss Streak 2 | . . 2 . Penetration Max . | . . . . Secondary Targets . | . . . . Shots Hit Robots 7 | . . 7 . Core Hits 3 | . . 3 . Critical Kills . | . . . . Critical Parts Destroyed . | . . . . Critical Strikes . | . . . . Melee Attacks . | . . . . Impact . | . . . . Slashing . | . . . . Piercing . | . . . . Sneak Attacks . | . . . . Combat Hostiles . | . . . . Follow-up Attacks . | . . . . Damage Inflicted 77 | . . 77 . Guns 77 | . . 77 . Cannons . | . . . . Explosions . | . . . . Melee . | . . . . Ramming . | . . . . Kinetic 34 | . . 34 . Thermal 43 | . . 43 . Explosive . | . . . . Electromagnetic . | . . . . Impact . | . . . . Slashing . | . . . . Piercing . | . . . . Highest Corruption . | . . . . Average Corruption . | . . . . Corruption Purged . | . . . . Corruption Blocked . | . . . . Overload Shots . | . . . . Overflow Damage . | . . . . Projectiles . | . . . . Explosions . | . . . . Melee . | . . . . Knockbacks . | . . . . Impact . | . . . . Kinetic . | . . . . Secondary . | . . . . Self-Inflicted Damage . | . . . . Shots . | . . . . Rammed . | . . . . Targets Rammed . | . . . . Kicked . | . . . . Crushed . | . . . . Highest Temperature 28 | . . 12 28 Average Temperature 14 | . . 8 17 Received Heat Transfer 456 | . 12 39 405 Siege Activations . | . . . . Martial Activations . | . . . . Shielding Activations . | . . . . Robots Disrupted . | . . . . Combat Hostiles . | . . . . Robots Corrupted . | . . . . Combat Hostiles . | . . . . Parts Fried . | . . . . Impact Corruptions . | . . . . Robots Melted . | . . . . Combat Hostiles . | . . . . Parts Melted . | . . . . Heat Transferred 100 | . . 100 . Parts Sabotaged . | . . . . Parts Stolen . | . . . . Parts Stripped . | . . . . Power Chain Reactions . | . . . . Alert | -11 -10 -9 -8 ------- Run | Yrd Mat Mat Mat Maximum Alert Level . | . . . . Low Security (%) 100 | 100 100 100 100 Level 1 . | . . . . Level 2 . | . . . . Level 3 . | . . . . Level 4 . | . . . . Level 5 . | . . . . High Security . | . . . . Max Security . | . . . . Peak Influence 67 | . 15 50 67 Initial 20 | . . . 20 Average 11 | . 3 10 27 Influence Increases 172 | . 15 70 87 Destroy 0b10 Robot/C 60 | . . 60 . Destroy Leader 10 | . . 10 . Successful Hack 12 | . . . 12 Partial Spotted 15 | . . . 15 Lose Combat Pursuer 75 | . 15 . 60 Influence Decreases 165 | . 15 20 130 Entered New Map 30 | . . . 30 Time Decay 55 | . 15 10 30 Lost Part 80 | . . 10 70 Squads Dispatched 6 | . 3 . 3 Investigation 4 | . 1 . 3 Extermination . | . . . . Reinforcement 2 | . 2 . . Assault . | . . . . Garrison . | . . . . Intercept . | . . . . Searches Triggered . | . . . . Construction Impeded . | . . . . Haulers Reinforced . | . . . . Active Scanning Responses . | . . . . Cargo Convoy Interrupts . | . . . . Stealth | -11 -10 -9 -8 --------- Run | Yrd Mat Mat Mat Distress Signals 2 | . . . 2 Communications Jammed . | . . . . Distress Signals . | . . . . Times Spotted 45 | . 11 9 25 Peak Tracking Total 18 | . 9 8 18 Tactical Retreats 2 | . 1 . 1 Traps | -11 -10 -9 -8 ------- Run | Yrd Mat Mat Mat Traps Triggered 2 | . 1 . 1 Indirectly . | . . . . Trap Hack Attempts . | . . . . Triggered . | . . . . Disarmed . | . . . . Reprogrammed . | . . . . Reused . | . . . . Traps Extracted . | . . . . Installed . | . . . . Triggered . | . . . . Machines | -11 -10 -9 -8 ---------- Run | Yrd Mat Mat Mat Machines Disabled . | . . . . Max in Single Turn . | . . . . Machines Repaired . | . . . . Machines Dismantled . | . . . . Machines Sabotaged . | . . . . Overloaded Fab Kills . | . . . . Hacking | -11 -10 -9 -8 --------- Run | Yrd Mat Mat Mat Machines Accessed 5 | . . . 5 Terminals 5 | . . . 5 Fabricators . | . . . . Repair Stations . | . . . . Recycling Units . | . . . . Scanalyzers . | . . . . Garrison Access . | . . . . Total Hacks 11 | . . . 11 Successful 3 | . . . 3 Failed 8 | . . . 8 Catastrophic 2 | . . . 2 Database Lockouts . | . . . . Manual 12 | . . . 12 Terminals 11 | . . . 11 Fabricators . | . . . . Repair Stations . | . . . . Recycling Units . | . . . . Scanalyzers . | . . . . Garrison Access . | . . . . Terminal Hacks 1 | . . . 1 Part Schematic 1 | . . . 1 Fabricator Hacks . | . . . . Repair Station Hacks . | . . . . Recycling Unit Hacks . | . . . . Scanalyzer . | . . . . Garrison Access Hacks . | . . . . Unauthorized Hacks 2 | . . . 2 Terminals 2 | . . . 2 Botnet 2 | . . . 2 Fabricators . | . . . . Repair Stations . | . . . . Recycling Units . | . . . . Scanalyzers . | . . . . Garrison Access . | . . . . Data Cores Recovered . | . . . . Used . | . . . . Hacking Detections 4 | . . . 4 Full Trace Events 3 | . . . 3 Feedback Events . | . . . . Feedback Blocked . | . . . . Robot Schematics Acquired . | . . . . Robots Built . | . . . . Authchips . | . . . . Time . | . . . . Total Robot Build Rating . | . . . . Part Schematics Acquired 1 | . . . 1 Parts Built . | . . . . Authchips . | . . . . Time . | . . . . Total Part Build Rating . | . . . . Parts Repaired . | . . . . Time . | . . . . Parts Recycled . | . . . . Recycled Matter . | . . . . Retrieved Matter . | . . . . Retrieved Components . | . . . . Parts Scanalyzed . | . . . . Part Schematics Acquired . | . . . . Parts Damaged . | . . . . Bothacking | -11 -10 -9 -8 ------------ Run | Yrd Mat Mat Mat Used RIF Installer . | . . . . Robots Hacked . | . . . . Non-combat . | . . . . Combat . | . . . . Robot Hacks Applied . | . . . . Relay Couplers Released . | . . . . Fabnet Peak Effective % . | . . . . Robots Rewired . | . . . . Allies Hacked . | . . . . Hacks Repelled . | . . . . Allies | -11 -10 -9 -8 -------- Run | Yrd Mat Mat Mat Total Allies . | . . . . Largest Group . | . . . . Highest-Rated Group . | . . . . Highest-Rated Ally . | . . . . Total Orders . | . . . . Ally Attacks . | . . . . Total Damage . | . . . . Kills . | . . . . Allies Corrupted . | . . . . Allies Melted . | . . . . Intel | -11 -10 -9 -8 ------- Run | Yrd Mat Mat Mat Active Infowar (turns) . | . . . . Robot Analysis Total . | . . . . Derelict Logs Recovered . | . . . . Drone Launches . | . . . . Drone Recoveries . | . . . . Exploration | -11 -10 -9 -8 ------------- Run | Yrd Mat Mat Mat Turns Passed 242 | 21 82 70 69 Spaces Moved 391 | 32 117 86 156 Core 272 | 32 117 83 40 Treads . | . . . . Legs . | . . . . Wheels . | . . . . Hover . | . . . . Flight 119 | . . 3 116 Fastest Speed 32 | 50 50 40 32 Average Speed 45 | 50 50 49 40 Slowest Speed 50 | 50 50 50 50 Overloaded Moves . | . . . . Propulsion Burnouts . | . . . . Robots Hopped 10 | . . . 10 Potential Cave-ins . | . . . . Cave-ins Triggered . | . . . . Exploration Rate (%) 18 | 3 31 13 27 Regions Visited 3 Branch Regions . Pre-discovered Areas . | . . . . Known Exits Taken . | . . . . Unknown Exits Taken 3 | 1 1 1 . Scrap Searched . | . . . . Spaces Dug . | . . . . Terrain Destroyed . | . . . . Melee . | . . . . Projectile . | . . . . AOE . | . . . . Terrain Rammed . | . . . . Walls Destroyed . | . . . . Machines Disabled . | . . . . Actions | -11 -10 -9 -8 --------- Run | Yrd Mat Mat Mat Total 427 | 35 139 101 152 Wait 27 | 1 22 4 . Move 372 | 31 116 85 140 Hop 6 | . . . 6 Pick Up 7 | 1 1 4 1 Fast Attach 3 | 2 . 1 . Attach 5 | . . . 5 Detach . | . . . . Swap . | . . . . Drop 1 | . . 1 . Fire 6 | . . 6 . Melee . | . . . . Ram . | . . . . Kick . | . . . . Crush . | . . . . Escape Stasis . | . . . . Rewire . | . . . . Trap . | . . . . Miscellaneous . | . . . . Route ------- -11/Scrapyard -10/Materials -9/Materials (discovered 2 exits: *Mat / [*Sto]) -8/Materials (discovered 1 exit: [*Fac]) History --------- Turn | Location | Event 2 | -11/Scrapyard | Met Revision 17 13 | -11/Scrapyard | Discovered new exit (range 15) 22 | -11/Scrapyard | Entered Materials 96 | -10/Materials | Discovered new exit (range 15) 104 | -10/Materials | Entered another Materials area 104 | -9/Materials | Evolved 2 slots: Utility x2 114 | -9/Materials | Discovered new exit (range 5) 142 | -9/Materials | Discovered new exit (range 16) 174 | -9/Materials | Entered another Materials area 174 | -8/Materials | Evolved 2 slots: Utility x2 211 | -8/Materials | Discovered new exit (range 10) 231 | -8/Materials | Core integrity fell below 50% 236 | -8/Materials | Core integrity fell below 20% 243 | -8/Materials | Destroyed by G-47 Trooper with Particle Gun Last Messages --------------- Rating: 3 Schematic downloaded. Connecting with Terminal... U-05 Engineer works on Matter Pump. S-10 Pest destroyed. Acquired Flight Unit. Cesium-ion Thruster destroyed. U-05 Engineer works on Matter Pump. Critical hit (Burn: +37). Flight Unit destroyed. Critical hit (Burn: +37). U-05 Engineer works on Matter Pump. Cesium-ion Thruster destroyed. Triggered EMP Trap. A bubble of electromagnetic force engulfs the area. Cesium-ion Thruster destroyed. Alarm Trap short circuited. Door malfunctions. An alarm sounds. ALERT: Alarm triggered, dispatching investigation squad. Map ----- +----------------------------------------------------+ | ??????????# #####+########### # " | | ??????????# !!! ! # | | ??????????# !!! # | | ??????????#""" !!! ### | | ??????????#"Y = T#? | | ??????????#""" ##? | | ??????????# """ ### | | ??????????#! !! | | ??????????# | | ??????????# | | ??????????# [% | | ??????????+ ##### ###### # | | ??????????# #####/####?#####+#### | | ??????????# # #?# | | ?########## # """ #?# "T" | | # T # # """ #?# ! | | # """ #! # """ #?#! | | # """ #%= # #?# """"" | | # """ * /*! + """ #?# """"" | | # # # """ #?# """"" | | # # # """ #?# [ | | # # # #?########## | | # ] # ##########??????????? | | ########### #???????????????????? | | # # #???????????????????? | | # = @ #???????????????????? | | # # #???????????????????? | | # k #gg #???????????????????? | | # """ ""?# #???????????????????? | | ? """ ""?#####???????????????????? | | ??""" ??????????????????????????? | | ?? ??????????????????????????? | | ?#?####???????????????????????????? | | ??????????????????????????????????? | | ??????????????????????????????????? | | ??????????????????????????????????? | | ??????????????????????????????????? | | ??????????????????????????????????? | | ??????????????????????????????????? | | ??????????????????????????????????? | | ??????????????????????????????????? | | ??????????????????????????????????? | | ??????????????????????????????????? | | ??????????????????????????????????? | | ??????????????????????????????????? | | ??????????????????????????????????? | | | | | | | | | +----------------------------------------------------+ Best States ------------- Heat Dissipation 31 Energy Generation 5 Energy Capacity 100 Matter Stores 80 Matter Capacity 300 Sight Range 16 Terrain Scan Density 10 Evasion (%) 63 Item Schematics ----------------- Hacking Suite | -8/Materials | Hacked Robot Schematics ------------------ None Fabricated ------------ Nothing Repaired ---------- Nothing Alien Tech Used ----------------- None Achievements -------------- None Challenges ------------ None Game ------ Seed TargetingSiegeNanovents Manual? 0 Play Time 00:05:28 Cumulative 212.7 hours Start 2025.05.28 @ 16:32:21 End 2025.05.28 @ 16:38:04 Sessions 1 Manual Loads 0 Difficulty Rogue Special Mode None Game No. 216 Rogue 31 Adventurer 173 Explorer 12 Win Type - Total 58 Types 16/1/16/2/12/0/4/2/0/5 Lore% 48 Gallery% 49 Achievement% 67 Wizard Run 0 Options --------- Layout 0 ASCII 0 Keyboard 0 Movement Numpad Keybinds 0 Fullscreen 2 Font 12/Smallcaps Map View 83x54 Zoom Use 0% Tactical HUD 0 Map Filters NONE Filters NONE Steam X RUN: 5887e459-95c6-423f-8d80-f5ad1da858e7